Cogmind - Beta 16.1 @@@ ROGUE MODE // 2026.03.29 @ 09:53:25 Player: Gatamar Result: Destroyed by P-60 Hacker with Shock Rifle Performance ------------- Evolutions (4) 2000 Regions Visited (4) 800 Robots Destroyed (27) 135 Value Destroyed (1069) 1069 Prototype IDs (6) 120 Alien Tech Used (0) 0 Bonus (300) 300 TOTAL SCORE: 4424 Bonus ------- Registered with UFD 300 Cogmind --------- Core Integrity 0/850 Matter 272/300 Energy 33/150 System Corruption 8% Temperature Cool (0) Movement Walking (120) Location -6/Factory Parts ------- > --- POWER (2) -------- Light Angular Momentum Engine > --- PROPULSION (4) --- Carbon-fiber Leg Carbon-fiber Leg Carbon-fiber Leg Flexi-carbon Leg > --- UTILITY (7) ------ Targeting Computer Jamming Amplifier Backup Plating VII Improved Light Armor Plating Hacking Suite > --- WEAPON (2) ------- Proton Cannon > --- INVENTORY (5) ---- Carbon-fiber Leg Improved Signal Interpreter Terrain Scan Processor Peak State ------------ > --- POWER ------------ Improved Deuterium Engine Backup Power VII > --- PROPULSION ------- Flexi-carbon Leg Wheel Wheel > --- UTILITY ---------- Targeting Computer Jamming Amplifier Backup Plating VII Improved Light Armor Plating Hacking Suite Scrapoid Pod > --- WEAPON ----------- Gauss Rifle > --- INVENTORY -------- Carbon-fiber Leg Carbon-fiber Leg Improved Signal Interpreter Terrain Scan Processor Improved Proton Missile Launcher [Rating: 54] Favorites ----------- Power Ion Engine Engine Ion Engine Power Core Backup Power VII Propulsion Light Treads Treads Light Treads Leg Flexi-carbon Leg Wheel Wheel Hover Unit Gravmag System Utility Large Storage Unit Device Structural Scanner Storage Large Storage Unit Processor Jamming Amplifier Hackware Hacking Suite Protection Improved Light Armor Plating Weapon Powered Hammer Energy Cannon Heavy Particle Cannon Ballistic Gun Light Assault Rifle Ballistic Cannon Slug Cannon Launcher Improved Proton Missile Launcher Impact Weapon Powered Hammer Build | -11 -10 -10 -9 -6 ------- Run | Yrd Mat Sub Scr Fac Slots Evolved 8 | . . . . 8 Power 1 | . . . . 1 Propulsion 2 | . . . . 2 Utility 5 | . . . . 5 Weapon . | . . . . . Parts Attached 45 | 6 2 1 4 32 Power 6 | 1 . 1 1 3 Engine 4 | 1 . 1 . 2 Core 2 | . . . 1 1 Reactor . | . . . . . Propulsion 13 | 2 . . 1 10 Treads 3 | 2 . . 1 . Leg 7 | . . . . 7 Wheel 2 | . . . . 2 Hover 1 | . . . . 1 Flight . | . . . . . Utility 15 | 1 2 . . 12 Device 8 | . 1 . . 7 Storage 2 | 1 1 . . . Processor 2 | . . . . 2 Hackware 1 | . . . . 1 Protection 2 | . . . . 2 Artifact . | . . . . . Weapon 11 | 2 . . 2 7 Energy Gun . | . . . . . Energy Cannon 4 | . . . . 4 Ballistic Gun 4 | 2 . . . 2 Ballistic Cannon 1 | . . . . 1 Launcher 1 | . . . 1 . Special Weapon . | . . . . . Impact Weapon 1 | . . . 1 . Slashing Weapon . | . . . . . Piercing Weapon . | . . . . . Special Melee Weapon . | . . . . . Unidentified Prototypes . | . . . . . Corrupted Parts 2 | . . . . 2 System Corruption 7 | . . . . 7 Parts Lost 30 | . . 1 . 29 Power 5 | . . 1 . 4 Propulsion 9 | . . . . 9 Utility 8 | . . . . 8 Weapon 8 | . . . . 8 Highest Loss Streak 6 | . . 1 . 6 To Critical Strikes . | . . . . . Average Backups 9 | 2 6 9 12 6 Power . | . 1 . . . Propulsion 2 | 1 2 2 2 . Utility 1 | . . 2 2 2 Weapon 4 | . 3 4 7 2 Tool/Special . | . . . . . Unused Backups 10 | . . . 3 7 Power . | . . . . . Propulsion 1 | . . . . 1 Utility 5 | . . . . 5 Weapon 4 | . . . 3 1 Tool/Special . | . . . . . Average Slot Usage (%) 85 | . 98 87 100 58 Engine 9 | . 14 1 13 2 Treads 20 | . 28 28 28 4 Leg 1 | . . . . 4 Wheel 1 | . . . . 3 Device 13 | . 12 14 14 12 Storage 11 | . 14 14 14 6 Processor 1 | . . . . 3 Hackware 1 | . . . . 5 Ballistic Gun 7 | . 28 28 3 2 Launcher 6 | . . . 12 1 Impact Weapon 7 | . . . 12 3 Peak Build Rating 54 | 6 8 8 24 54 Average Rating 21 | 5 7 7 19 33 On Entrance 9 | . 6 8 8 23 Avg Prop Armor Cover (%) 6 | . . . . 6 Naked Turns . | . . . . . Heaviest Build 45 | 10 26 28 37 45 Greatest Support 70 | 40 40 40 50 70 Greatest Overweight (x) 12 | . . . . 12 Average Overweight (x) . | . . . . 2 Largest Inventory Capacity 15 | 8 15 15 15 15 Average Capacity 13 | 6 10 15 15 13 Most Carried 15 | 4 9 10 15 14 Average Carried 10 | 2 7 9 13 7 Final Capacity 15 | 8 15 15 15 5 Final Carried 15 | 4 9 9 15 3 Scrap Suit Usage (%) 9 | . . . . 29 Class Distribution -------------------- 87% | Mutant 9% | Scavenger-Mutant Dominant Class ---------------- Mutant | -10/Materials Mutant | -10/Subcaves Mutant | -9/Scraptown Mutant | -6/Factory Resources | -11 -10 -10 -9 -6 ----------- Run | Yrd Mat Sub Scr Fac Matter Collected 1108 | 214 76 41 73 704 Remotely . | . . . . . Salvage Created 1151 | . 169 42 . 940 Parts 54 | . 7 7 . 40 Haulers Intercepted . | . . . . . Recyclers Shooed 3 | . . . . 3 Parts Field Recycled . | . . . . . Retrieved Matter . | . . . . . Parts Self-Destructed 11 | . . 11 . . Prevented . | . . . . . Parts Restored . | . . . . . Kills | -11 -10 -10 -9 -6 ------- Run | Yrd Mat Sub Scr Fac Combat Hostiles Destroyed 19 | . 4 1 . 14 Melee 2 | . . . . 2 Guns 10 | . 4 1 . 5 Cannons 4 | . . . . 4 AOE 2 | . . . . 2 Classes Destroyed 10 | . 2 1 . 7 Builder 4 | . . . . 4 Recycler 2 | . . . . 2 Mechanic 1 | . . . . 1 Operator 1 | . 1 . . . Grunt 11 | . 4 . . 7 Duelist 1 | . . . . 1 Sentry 2 | . . . . 2 Hunter 3 | . . . . 3 Programmer 1 | . . . . 1 Subdweller 1 | . . 1 . . Best Kill Streak 3 | . 2 1 . 3 Combat Bots Only 2 | . 2 1 . 2 Max Kills in Single Turn 2 | . 1 1 . 2 Gunslinging . | . . . . . Exploded 2 | . . . . 2 Melee 1 | . . . . 1 Uniques/NPCs Destroyed . | . . . . . Combat | -11 -10 -10 -9 -6 -------- Run | Yrd Mat Sub Scr Fac Hostile Shots Fired 407 | . 24 6 . 377 Missed 126 | . 7 2 . 117 Hits 281 | . 17 4 . 260 Projectile 281 | . 17 4 . 260 AOE 2 | . . . . 2 Critical Strikes 7 | . . 1 . 6 Damage Taken 4489 | . 215 78 . 4196 Core 904 | . 14 39 . 851 Absorbed by Shields . | . . . . . Regen/Repaired (Parts) 343 | . . . 343 . Core Remaining (%) 89 | 100 . . 78 . Volleys Fired 126 | . 23 5 . 98 Largest 2 | . 2 2 . 2 Hottest 118 | . 40 40 . 118 Shots Fired 175 | . 46 10 . 119 Gun 124 | . 46 10 . 68 Cannon 46 | . . . . 46 Launcher 5 | . . . . 5 Special . | . . . . . Kinetic 144 | . 46 10 . 88 Thermal 20 | . . . . 20 Explosive . | . . . . . Electromagnetic 11 | . . . . 11 Robot Hit Streak 11 | . 7 5 . 11 Robot Miss Streak 7 | . 4 2 . 7 Penetration Max 1 | . . . . 1 Secondary Targets . | . . . . . Shots Hit Robots 130 | . 29 7 . 94 Core Hits 93 | . 12 4 . 77 Critical Kills 2 | . 1 . . 1 Critical Parts Destroyed 1 | . . . . 1 Critical Strikes 3 | . 1 . . 2 Destroy 3 | . 1 . . 2 Melee Attacks 24 | . . . . 24 Impact 24 | . . . . 24 Slashing . | . . . . . Piercing . | . . . . . Sneak Attacks 1 | . . . . 1 Combat Hostiles . | . . . . . Follow-up Attacks . | . . . . . Damage Inflicted 3082 | . 246 55 . 2781 Guns 1501 | . 246 55 . 1200 Cannons 604 | . . . . 604 Explosions 332 | . . . . 332 Melee 633 | . . . . 633 Ramming 12 | . . . . 12 Kinetic 1787 | . 246 55 . 1486 Thermal 287 | . . . . 287 Explosive . | . . . . . Electromagnetic 363 | . . . . 363 Impact 633 | . . . . 633 Slashing . | . . . . . Piercing . | . . . . . Highest Corruption 8 | . . . . 8 Average Corruption 7 | . . . . 7 Corruption Purged . | . . . . . Corruption Blocked . | . . . . . Effects 2 | . . . . 2 Message Errors 1 | . . . . 1 Heat Flow Errors 1 | . . . . 1 Overload Shots . | . . . . . Overflow Damage 116 | . . . . 116 Projectiles . | . . . . . Explosions 7 | . . . . 7 Melee 109 | . . . . 109 Knockbacks 7 | . . . . 7 Impact 3 | . . . . 3 Kinetic 4 | . . . . 4 Secondary . | . . . . . Self-Inflicted Damage 62 | . . . . 62 Shots 2 | . . . . 2 Rammed 3 | . . . . 3 Targets Rammed 3 | . . . . 3 Kicked . | . . . . . Crushed . | . . . . . Highest Temperature 592 | . 25 . . 592 Average Temperature 177 | . 8 . . 213 Received Heat Transfer 954 | . 120 . . 834 Effects 12 | . . . . 12 Shutdowns 1 | . . . . 1 Energy Bleed 1 | . . . . 1 Interference 4 | . . . . 4 Matter Decay 2 | . . . . 2 Short Circuit 1 | . . . . 1 Damage (minor) 2 | . . . . 2 Damage (major) 1 | . . . . 1 Siege Activations . | . . . . . Martial Activations . | . . . . . Shielding Activations . | . . . . . Robots Disrupted . | . . . . . Combat Hostiles . | . . . . . Robots Corrupted 2 | . . . . 2 Combat Hostiles 1 | . . . . 1 Parts Fried 2 | . . . . 2 Impact Corruptions 6 | . . . . 6 Robots Melted . | . . . . . Combat Hostiles . | . . . . . Parts Melted . | . . . . . Heat Transferred 407 | . . . . 407 Parts Sabotaged . | . . . . . Parts Stolen . | . . . . . Parts Stripped . | . . . . . Power Chain Reactions . | . . . . . Alert | -11 -10 -10 -9 -6 ------- Run | Yrd Mat Sub Scr Fac Maximum Alert Level . | . . . . . Low Security (%) 100 | 100 100 . . 100 Level 1 . | . . . . . Level 2 . | . . . . . Level 3 . | . . . . . Level 4 . | . . . . . Level 5 . | . . . . . High Security . | . . . . . Max Security . | . . . . . Peak Influence 91 | . 55 . . 91 Initial . | . . . . . Average 17 | . 14 . . 19 Influence Increases 616 | . 120 . . 496 Destroy 0b10 Robot/C 360 | . 80 . . 280 Destroy 0b10 Robot/NC 40 | . 5 . . 35 Destroy Leader 90 | . 20 . . 70 Allied During Kill 5 | . . . . 5 Successful Hack 5 | . . . . 5 Disable Machine 45 | . . . . 45 Destroy Structure 11 | . . . . 11 Lose Combat Pursuer 60 | . 15 . . 45 Influence Decreases 560 | . 80 40 . 440 Entered New Map 20 | . . 20 . . Time Decay 360 | . 80 10 . 270 Lost Part 180 | . . 10 . 170 Squads Dispatched 7 | . 1 . . 6 Investigation 1 | . . . . 1 Extermination 2 | . . . . 2 Reinforcement 4 | . 1 . . 3 Assault . | . . . . . Garrison . | . . . . . Intercept . | . . . . . Searches Triggered . | . . . . . Construction Impeded 3 | . . . . 3 Haulers Reinforced . | . . . . . Active Scanning Responses . | . . . . . Cargo Convoy Interrupts . | . . . . . Stealth | -11 -10 -10 -9 -6 --------- Run | Yrd Mat Sub Scr Fac Distress Signals . | . . . . . Communications Jammed . | . . . . . Distress Signals . | . . . . . Times Spotted 27 | . 7 1 . 19 Peak Tracking Total 4 | . 3 1 . 4 Tactical Retreats 3 | . 1 . . 2 Traps | -11 -10 -10 -9 -6 ------- Run | Yrd Mat Sub Scr Fac Traps Triggered . | . . . . . Indirectly . | . . . . . Trap Hack Attempts . | . . . . . Triggered . | . . . . . Disarmed . | . . . . . Reprogrammed . | . . . . . Reused . | . . . . . Traps Extracted . | . . . . . Installed . | . . . . . Triggered . | . . . . . Machines | -11 -10 -10 -9 -6 ---------- Run | Yrd Mat Sub Scr Fac Machines Disabled 3 | . . . . 3 Max in Single Turn 1 | . . . . 1 Machines Repaired . | . . . . . Machines Dismantled . | . . . . . Machines Sabotaged . | . . . . . Overloaded Fab Kills . | . . . . . Hacking | -11 -10 -10 -9 -6 --------- Run | Yrd Mat Sub Scr Fac Machines Accessed 4 | . . 1 1 2 Terminals 2 | . . . . 2 Fabricators . | . . . . . Repair Stations . | . . . . . Recycling Units . | . . . . . Scanalyzers . | . . . . . Garrison Access . | . . . . . Total Hacks 17 | . . 4 8 5 Successful 13 | . . 4 8 1 Failed 4 | . . . . 4 Catastrophic 1 | . . . . 1 Database Lockouts . | . . . . . Manual 5 | . . . . 5 Terminals 5 | . . . . 5 Fabricators . | . . . . . Repair Stations . | . . . . . Recycling Units . | . . . . . Scanalyzers . | . . . . . Garrison Access . | . . . . . Terminal Hacks 13 | . . 4 8 1 Record 12 | . . 4 8 . Terminal Index 1 | . . . . 1 Fabricator Hacks . | . . . . . Repair Station Hacks . | . . . . . Recycling Unit Hacks . | . . . . . Scanalyzer . | . . . . . Garrison Access Hacks . | . . . . . Unauthorized Hacks . | . . . . . Terminals . | . . . . . Fabricators . | . . . . . Repair Stations . | . . . . . Recycling Units . | . . . . . Scanalyzers . | . . . . . Garrison Access . | . . . . . Data Cores Recovered . | . . . . . Used . | . . . . . Hacking Detections 2 | . . . . 2 Full Trace Events 1 | . . . . 1 Feedback Events . | . . . . . Feedback Blocked . | . . . . . Robot Schematics Acquired . | . . . . . Robots Built . | . . . . . Authchips . | . . . . . Time . | . . . . . Total Robot Build Rating . | . . . . . Part Schematics Acquired . | . . . . . Parts Built . | . . . . . Authchips . | . . . . . Time . | . . . . . Total Part Build Rating . | . . . . . Part Studies Acquired . | . . . . . Parts Repaired . | . . . . . Time . | . . . . . Parts Recycled . | . . . . . Recycled Matter . | . . . . . Retrieved Matter . | . . . . . Retrieved Components . | . . . . . Parts Scanalyzed . | . . . . . Part Schematics Acquired . | . . . . . Parts Damaged . | . . . . . Bothacking | -11 -10 -10 -9 -6 ------------ Run | Yrd Mat Sub Scr Fac Used RIF Installer . | . . . . . Robots Hacked . | . . . . . Non-combat . | . . . . . Combat . | . . . . . Robot Hacks Applied . | . . . . . Relay Couplers Released . | . . . . . Fabnet Peak Effective % . | . . . . . Robots Rewired . | . . . . . Allies Hacked . | . . . . . Hacks Repelled . | . . . . . Allies | -11 -10 -10 -9 -6 -------- Run | Yrd Mat Sub Scr Fac Total Allies 1 | . . . . 1 Largest Group 1 | . . . . 1 Highest-Rated Group 35 | . . . . 35 Highest-Rated Ally 35 | . . . . 35 Initial UFD Resources 23 | . . . . 23 Total Orders . | . . . . . Ally Attacks . | . . . . . Total Damage . | . . . . . Kills . | . . . . . Allies Corrupted . | . . . . . Allies Melted . | . . . . . Intel | -11 -10 -10 -9 -6 ------- Run | Yrd Mat Sub Scr Fac Active Infowar (turns) 3225 | . 325 358 1965 577 Sensors 225 | . . . . 225 IFF 221 | . . . . 221 Terrain 246 | . . . . 246 Structural 2965 | . 325 358 1965 317 Robot Analysis Total . | . . . . . Derelict Logs Recovered 2 | . . 2 . . Drone Launches . | . . . . . Drone Recoveries . | . . . . . Exploration | -11 -10 -10 -9 -6 ------------- Run | Yrd Mat Sub Scr Fac Turns Passed 4037 | 95 357 358 1965 1262 Spaces Moved 2080 | 54 176 205 1216 429 Core 70 | 3 . . . 67 Treads 1759 | 51 176 205 1216 111 Legs 73 | . . . . 73 Wheels 172 | . . . . 172 Hover 6 | . . . . 6 Flight . | . . . . . Fastest Speed 50 | 50 160 160 160 80 Average Speed 167 | 153 160 160 160 195 Slowest Speed 650 | 160 160 160 160 650 Overloaded Moves . | . . . . . Propulsion Burnouts . | . . . . . Robots Hopped . | . . . . . Potential Cave-ins . | . . . . . Cave-ins Triggered . | . . . . . Exploration Rate (%) 28 | 3 34 18 79 6 Regions Visited 4 Branch Regions 2 Pre-discovered Areas 2 | . . 2 . . Known Exits Taken . | . . . . . Unknown Exits Taken 4 | 1 1 1 1 . Scrap Searched 4 | . . . 4 . Spaces Dug 2 | . . . . 2 Terrain Destroyed 9 | . . . . 9 Melee 2 | . . . . 2 Projectile 7 | . . . . 7 AOE . | . . . . . Terrain Rammed . | . . . . . Walls Destroyed . | . . . . . Machines Disabled . | . . . . . Actions | -11 -10 -10 -9 -6 --------- Run | Yrd Mat Sub Scr Fac Total 2417 | 63 214 227 1235 678 Wait 93 | . 10 16 . 67 Move 2076 | 53 175 204 1215 429 Hop . | . . . . . Pick Up 31 | 4 4 1 9 13 Fast Attach 25 | 6 1 . . 18 Attach 18 | . . 1 . 17 Detach . | . . . . . Swap 9 | . 1 . 6 2 Drop 8 | . . . 5 3 Fire 126 | . 23 5 . 98 Melee 24 | . . . . 24 Ram 3 | . . . . 3 Kick . | . . . . . Crush . | . . . . . Escape Stasis . | . . . . . Rewire 4 | . . . . 4 Trap . | . . . . . Miscellaneous . | . . . . . Route ------- -11/Scrapyard -10/Materials (discovered 3 exits: [*Mat] / [*Min] / *Sub) -10/Subcaves -9/Scraptown (discovered 2 exits: *Fac x2) -6/Factory (discovered 1 exit: [*Ext]) History --------- Turn | Location | Event 14 | -11/Scrapyard | Discovered new exit (range 13) 96 | -11/Scrapyard | Entered Materials 180 | -10/Materials | Discovered new exit (range 10) 301 | -10/Materials | Build established: Mutant 308 | -10/Materials | Discovered new exit (range 15) 395 | -10/Materials | Discovered new exit (range 14) 453 | -10/Materials | Entered Subcaves 454 | -10/Subcaves | Approached by a straggling Scientist 524 | -10/Subcaves | Learned location of 2 exits from Materials 571 | -10/Subcaves | Learned location of Storage (-9) 596 | -10/Subcaves | Visited Clippyterm 601 | -10/Subcaves | Learned location of Deep Caves (-6) 601 | -10/Subcaves | Learned Factory fabricator intel 708 | -10/Subcaves | Shifting Twisted Machinery released Flamer 712 | -10/Subcaves | Shifting Twisted Machinery released Riot Gun 725 | -10/Subcaves | Shifting Twisted Machinery released Scrap Shield 741 | -10/Subcaves | Shifting Twisted Machinery released Slug Cannon 783 | -10/Subcaves | Scientist uncovered a shortcut to Scraptown 811 | -10/Subcaves | Entered Scraptown 1210 | -9/Scraptown | Discovered new exit (range 5) 1348 | -9/Scraptown | Visited Cave Peace 1406 | -9/Scraptown | Visited Awakened 1601 | -9/Scraptown | Visited TADAMA 2110 | -9/Scraptown | Visited Symbiants 2139 | -9/Scraptown | Visited CR-KLE's Repair Center 2152 | -9/Scraptown | CR-KLE repaired 4 parts 2182 | -9/Scraptown | Visited UFD Registry 2182 | -9/Scraptown | Registered with UFD as "Gammaslasher" 2222 | -9/Scraptown | Visited LU-1G1's Boring Crew 2259 | -9/Scraptown | Visited Botcube Research 2280 | -9/Scraptown | Found Botcube 2319 | -9/Scraptown | Visited Analyses Database 2356 | -9/Scraptown | Visited Scrapoid Pod Storage 2365 | -9/Scraptown | Found Scrapoid Pod 2622 | -9/Scraptown | Visited Infowarlord's Domain 2634 | -9/Scraptown | Found Exp. Sensor Array 2746 | -9/Scraptown | Found Scrap Suit 2766 | -9/Scraptown | Discovered new exit (range 5) 2776 | -9/Scraptown | Entered Factory 2776 | -6/Factory | Evolved 8 slots: Power x1, Propulsion x2, Utility x5 2777 | -6/Factory | Loaded intel: 5 fabricator locations 3076 | -6/Factory | Lost 6 parts (1p3n1u1w) 3218 | -6/Factory | Lost 6 parts (1p2n2u1w) 3432 | -6/Factory | Core integrity fell below 50% 3535 | -6/Factory | Core integrity fell below 20% 3584 | -6/Factory | Lost 5 parts (1n1u3w) 3888 | -6/Factory | Botcube activated 3896 | -6/Factory | Botcube completed mutation into core form, armed with 1 gun. 3953 | -6/Factory | Build established: Scavenger-Mutant 3963 | -6/Factory | Discovered new exit (range 14) 4007 | -6/Factory | Lost 4 parts (1p2n1w) 4038 | -6/Factory | Destroyed by P-60 Hacker with Shock Rifle Last Messages --------------- 04000_ R-10 Processor collects Corrupted Adv. Heat Sink. 04001_ U-05 Engineer lays Concrete. 04002_ Destroyed Hpw. Tractor Beam. 04002_ Door malfunctions. 04002_ U-05 Engineer destroyed. 04003_ ALERT: Construction progress impeded, dispatching reinforcements to local area. 04004_ U-05 Engineer repairs door. 04005_ P-60 Hacker resets U-05 Engineer, system corruption cleaned. 04008_ System corrupted: Heat flow error (+132). 04011_ Overheating: Energy bleed (-8). 04013_ Imp. Proton Missile Launcher destroyed. 04019_ P-60 Hacker misfires. 04022_ Imp. Deuterium Engine destroyed. 04029_ U-05 Engineer lays Concrete. 04030_ U-05 Engineer builds a Door. 04031_ U-05 Engineer lays Concrete. [Achievement: This Is Interesting...] Map ----- +----------------------------------------------------+ | ?????????????????????????????????????????????????? | | ?????????????????????????????????????????????????? | | ?????????????????????????????????????????????????? | | ?????????????????????????????????????????????????? | | ?????????????????????????????????????????????????? | | ?????????????????????????????????????????????????? | | ?????????????????????????????????????????????????? | | ?????????????????????????????????????????????????? | | ?????????????????????????????????????????????????? | | ?????????????????????????????????????????????????? | | ?????????????????????????????????????????????????? | | ?????????????????????????????????????????????????? | | ?????????????????????????????????????????????????? | | ?????????????????????????????????????????????????? | | ??????????????????? ?????????????????????????????? | | ???????????????????